[Event "*** Titled Tuesday Blitz"]
[Site "Chess.com"]
[Date "2018.06.05"]
[Round "10"]
[White "Paralinch"]
[Black "Grandelicious"]
[Result "1-0"]
[WhiteElo "2831"]
[BlackElo "2673"]
[TimeControl "180+2"]
[EndTime "15:28:50 PDT"]
[Termination "Paralinch won by checkmate"]

1. e4 {[%clk 0:02:49.5]} 1... c5 {[%clk 0:03:00.6]} 2. Nf3 {[%clk 0:02:50.4]}
2... Nf6 {[%clk 0:03:02.2]} 3. e5 {[%clk 0:02:51]} 3... Nd5 {[%clk 0:03:03.3]}
4. Nc3 {[%clk 0:02:52.6]} 4... Nxc3 {[%clk 0:03:03.9]} 5. dxc3 {[%clk
0:02:54.5]} 5... Nc6 {[%clk 0:03:05.5]} 6. Qe2 {[%clk 0:02:56]} 6... e6 {[%clk
0:03:02.5]} 7. Bf4 {[%clk 0:02:56.8]} 7... h6 {[%clk 0:02:57.1]} 8. h4 {[%clk
0:02:57.1]} 8... b6 {[%clk 0:02:52.6]} 9. O-O-O {[%clk 0:02:57.2]} 9... Bb7
{[%clk 0:02:54.2]} 10. Nd2 {[%clk 0:02:58.6]} 10... Qc7 {[%clk 0:02:34.3]} 11.
Nc4 {[%clk 0:02:52.2]} 11... O-O-O {[%clk 0:02:33.8]} 12. h5 {[%clk 0:02:43.8]}
12... f6 {[%clk 0:02:13.1]} 13. Nd6+ {[%clk 0:02:35.5]} 13... Bxd6 {[%clk
0:02:11.6]} 14. exd6 {[%clk 0:02:37.4]} 14... Qb8 {[%clk 0:02:13.3]} 15. Rh3
{[%clk 0:02:30]} 15... Rde8 {[%clk 0:02:06.5]} 16. Rg3 {[%clk 0:02:26.2]} 16...
Rhg8 {[%clk 0:02:07.2]} 17. Qd2 {[%clk 0:02:23]} 17... Nd8 {[%clk 0:02:00.6]}
18. Bd3 {[%clk 0:02:04.8]} 18... e5 {[%clk 0:01:56.7]} 19. Be3 {[%clk
0:02:05.9]} 19... Qxd6 {[%clk 0:01:56.6]} 20. Bh7 {[%clk 0:02:06.7]} 20... Qxd2+
{[%clk 0:01:57.3]} 21. Rxd2 {[%clk 0:02:08.3]} 21... Ne6 {[%clk 0:01:12.7]} 22.
Bxg8 {[%clk 0:02:01.8]} 22... Rxg8 {[%clk 0:01:14.6]} 23. Bxh6 {[%clk
0:02:03.1]} 23... Rh8 {[%clk 0:01:16.1]} 24. Bxg7 {[%clk 0:01:59.8]} 24... Rxh5
{[%clk 0:01:17.5]} 25. Bxf6 {[%clk 0:01:59.2]} 25... Nf4 {[%clk 0:01:18.2]} 26.
b3 {[%clk 0:01:52.2]} 26... Bxg2 {[%clk 0:01:10.2]} 27. f3 {[%clk 0:01:43.4]}
27... Bf1 {[%clk 0:00:55.7]} 28. Rg8+ {[%clk 0:01:28.3]} 28... Kc7 {[%clk
0:00:57.1]} 29. Re8 {[%clk 0:01:23.1]} 29... Ne6 {[%clk 0:00:55]} 30. Re7 {[%clk
0:01:21.5]} 30... Bb5 {[%clk 0:00:54.8]} 31. Rd5 {[%clk 0:01:15.2]} 31... Rf5
{[%clk 0:00:38.5]} 32. Bxe5+ {[%clk 0:01:09.6]} 32... Kb7 {[%clk 0:00:27.7]} 33.
f4 {[%clk 0:00:56]} 33... Nxf4 {[%clk 0:00:25.1]} 34. Rd6 {[%clk 0:00:54.4]}
34... Ne2+ {[%clk 0:00:20.9]} 35. Kb2 {[%clk 0:00:54.5]} 35... Bc6 {[%clk
0:00:22.8]} 36. c4 {[%clk 0:00:51]} 36... Ng1 {[%clk 0:00:22.9]} 37. Bc3 {[%clk
0:00:46.8]} 37... Nf3 {[%clk 0:00:23.5]} 38. Rf6 {[%clk 0:00:46.5]} 38... Rh5
{[%clk 0:00:23.3]} 39. Ref7 {[%clk 0:00:43]} 39... Nh4 {[%clk 0:00:22.2]} 40. a3
{[%clk 0:00:40.1]} 40... Ng2 {[%clk 0:00:21.6]} 41. Re7 {[%clk 0:00:38.7]} 41...
a5 {[%clk 0:00:21]} 42. Rf8 {[%clk 0:00:35.1]} 42... Rh1 {[%clk 0:00:19.9]} 43.
Ree8 {[%clk 0:00:34.9]} 43... Rd1 {[%clk 0:00:17.2]} 44. Rb8+ {[%clk 0:00:31.4]}
44... Ka7 {[%clk 0:00:18]} 45. Rbe8 {[%clk 0:00:33.3]} 45... Rh1 {[%clk
0:00:18.5]} 46. Rf2 {[%clk 0:00:31.9]} 46... Rh3 {[%clk 0:00:19.3]} 47. Bd2
{[%clk 0:00:27.9]} 47... Nh4 {[%clk 0:00:19.4]} 48. Rh8 {[%clk 0:00:27.3]} 48...
Rh1 {[%clk 0:00:18.2]} 49. Rf7 {[%clk 0:00:24.9]} 49... Rd1 {[%clk 0:00:16.5]}
50. Rxh4 {[%clk 0:00:23.5]} 50... Rxd2 {[%clk 0:00:17.8]} 51. Rhf4 {[%clk
0:00:25]} 51... Kb7 {[%clk 0:00:17.9]} 52. Rf2 {[%clk 0:00:26.2]} 52... Rd4
{[%clk 0:00:19]} 53. R7f4 {[%clk 0:00:26.9]} 53... Rd6 {[%clk 0:00:19.9]} 54.
Rf6 {[%clk 0:00:27.8]} 54... Rd1 {[%clk 0:00:20.9]} 55. Rf8 {[%clk 0:00:25.8]}
55... Kc7 {[%clk 0:00:21.6]} 56. R8f4 {[%clk 0:00:24.9]} 56... Rh1 {[%clk
0:00:22.6]} 57. Rd2 {[%clk 0:00:25.4]} 57... Rh3 {[%clk 0:00:23.6]} 58. Rff2
{[%clk 0:00:25]} 58... Rg3 {[%clk 0:00:24.5]} 59. Rd3 {[%clk 0:00:25.4]} 59...
Rg1 {[%clk 0:00:24.7]} 60. Rfd2 {[%clk 0:00:26.4]} 60... Rg4 {[%clk 0:00:25.8]}
61. Kc3 {[%clk 0:00:27.5]} 61... Rh4 {[%clk 0:00:27]} 62. b4 {[%clk 0:00:26.2]}
62... axb4+ {[%clk 0:00:27.3]} 63. axb4 {[%clk 0:00:28.1]} 63... cxb4+ {[%clk
0:00:27.5]} 64. Kxb4 {[%clk 0:00:30]} 64... Rh5 {[%clk 0:00:26.6]} 65. Rd4
{[%clk 0:00:30.1]} 65... Ra5 {[%clk 0:00:27.3]} 66. Re2 {[%clk 0:00:29.3]} 66...
Ra4+ {[%clk 0:00:27.8]} 67. Kb3 {[%clk 0:00:29.6]} 67... Ra1 {[%clk 0:00:29]}
68. Re5 {[%clk 0:00:29.3]} 68... Rb1+ {[%clk 0:00:29.9]} 69. Kc3 {[%clk
0:00:30.3]} 69... Rh1 {[%clk 0:00:30.8]} 70. c5 {[%clk 0:00:30.9]} 70... bxc5
{[%clk 0:00:30.2]} 71. Rxc5 {[%clk 0:00:32.4]} 71... Rh3+ {[%clk 0:00:31.8]} 72.
Rd3 {[%clk 0:00:33.4]} 72... Rh2 {[%clk 0:00:33]} 73. Rc4 {[%clk 0:00:33.9]}
73... Rg2 {[%clk 0:00:31.6]} 74. Rcd4 {[%clk 0:00:35.1]} 74... Kb6 {[%clk
0:00:31.5]} 75. Rd2 {[%clk 0:00:35.4]} 75... Rg3+ {[%clk 0:00:32.3]} 76. Kb4
{[%clk 0:00:36.8]} 76... Rh3 {[%clk 0:00:32.2]} 77. c4 {[%clk 0:00:38]} 77...
Rh1 {[%clk 0:00:33.3]} 78. Rb2 {[%clk 0:00:36.4]} 78... Rh5 {[%clk 0:00:32.9]}
79. Rf4 {[%clk 0:00:36.2]} 79... Rg5 {[%clk 0:00:33.3]} 80. Rf1 {[%clk 0:00:35]}
80... Rh5 {[%clk 0:00:33.9]} 81. Ra1 {[%clk 0:00:35.8]} 81... Rg5 {[%clk
0:00:32.8]} 82. Kc3+ {[%clk 0:00:36.9]} 82... Kc7 {[%clk 0:00:33]} 83. Ra7+
{[%clk 0:00:38]} 83... Kd6 {[%clk 0:00:33.5]} 84. Rd2+ {[%clk 0:00:39.2]} 84...
Ke7 {[%clk 0:00:32.9]} 85. Kb4 {[%clk 0:00:37.5]} 85... Kd8 {[%clk 0:00:31.9]}
86. Ra5 {[%clk 0:00:36]} 86... Rg1 {[%clk 0:00:30.6]} 87. Kc5 {[%clk 0:00:36.1]}
87... Kc7 {[%clk 0:00:27.8]} 88. Ra7+ {[%clk 0:00:32.2]} 88... Kd8 {[%clk
0:00:23.3]} 89. Rh2 {[%clk 0:00:24.6]} 89... Rg5+ {[%clk 0:00:19.7]} 90. Kb6
{[%clk 0:00:24.9]} 90... Ke7 {[%clk 0:00:18.4]} 91. Ra5 {[%clk 0:00:21.6]} 91...
Rg4 {[%clk 0:00:16.1]} 92. Re2+ {[%clk 0:00:21.5]} 92... Kd6 {[%clk 0:00:15.6]}
93. Rd2+ {[%clk 0:00:21]} 93... Ke6 {[%clk 0:00:16]} 94. Re2+ {[%clk 0:00:22.3]}
94... Kd6 {[%clk 0:00:17.3]} 95. Rd5+ {[%clk 0:00:23.2]} 95... Bxd5 {[%clk
0:00:16.2]} 96. c5# {[%clk 0:00:24.5]} 1-0

[Event "*** Titled Tuesday Blitz"]
[Site "Chess.com"]
[Date "2018.06.05"]
[Round "10"]
[White "Leo_C"]
[Black "gpeloui"]
[Result "0-1"]
[WhiteElo "2158"]
[BlackElo "2300"]
[TimeControl "180+2"]
[EndTime "15:28:54 PDT"]
[Termination "gpeloui won by resignation"]

1. d4 {[%clk 0:03:01.9]} 1... f5 {[%clk 0:02:59.7]} 2. Nf3 {[%clk 0:02:59.8]}
2... Nf6 {[%clk 0:03:00.2]} 3. c4 {[%clk 0:03:00.3]} 3... g6 {[%clk 0:02:51.5]}
4. e3 {[%clk 0:03:00.3]} 4... Bg7 {[%clk 0:02:50.5]} 5. b4 {[%clk 0:03:01.1]}
5... O-O {[%clk 0:02:50.2]} 6. Be2 {[%clk 0:03:01.1]} 6... d6 {[%clk 0:02:51.7]}
7. Bb2 {[%clk 0:03:01.1]} 7... c6 {[%clk 0:02:52.9]} 8. a4 {[%clk 0:03:01.2]}
8... Nbd7 {[%clk 0:02:54.4]} 9. b5 {[%clk 0:03:01.4]} 9... Qc7 {[%clk
0:02:55.5]} 10. O-O {[%clk 0:03:01.5]} 10... e5 {[%clk 0:02:54.2]} 11. Nc3
{[%clk 0:03:01.4]} 11... e4 {[%clk 0:02:53]} 12. Nd2 {[%clk 0:03:01.4]} 12... h5
{[%clk 0:02:43.9]} 13. Qb3 {[%clk 0:02:58.1]} 13... Ng4 {[%clk 0:02:40.5]} 14.
h3 {[%clk 0:02:53.2]} 14... Ngf6 {[%clk 0:02:27]} 15. c5+ {[%clk 0:02:49.8]}
15... d5 {[%clk 0:02:27.3]} 16. a5 {[%clk 0:02:47.7]} 16... f4 {[%clk
0:02:19.2]} 17. b6 {[%clk 0:02:39.1]} 17... Qb8 {[%clk 0:02:13.5]} 18. bxa7
{[%clk 0:02:26.6]} 18... Rxa7 {[%clk 0:02:15.4]} 19. Ndxe4 {[%clk 0:02:22.8]}
19... fxe3 {[%clk 0:01:58.6]} 20. fxe3 {[%clk 0:02:22]} 20... Re8 {[%clk
0:01:49.3]} 21. Nxf6+ {[%clk 0:02:18]} 21... Nxf6 {[%clk 0:01:49]} 22. Rf3
{[%clk 0:02:16]} 22... Qc7 {[%clk 0:01:46]} 23. Raf1 {[%clk 0:02:08.4]} 23...
Bf5 {[%clk 0:01:35.2]} 24. Bc1 {[%clk 0:01:53.4]} 24... Qxa5 {[%clk 0:01:34]}
25. e4 {[%clk 0:01:45.9]} 25... Nxe4 {[%clk 0:01:33.1]} 26. Nxe4 {[%clk
0:01:45.9]} 26... Rxe4 {[%clk 0:01:31.5]} 27. Bd3 {[%clk 0:01:44.1]} 27... Bxd4+
{[%clk 0:01:29.6]} 28. Kh1 {[%clk 0:01:44.8]} 28... Qa2 {[%clk 0:01:23.2]} 29.
Qd1 {[%clk 0:01:33.9]} 29... Bf6 {[%clk 0:00:57.8]} 30. Bxe4 {[%clk 0:01:31.1]}
30... dxe4 {[%clk 0:00:59.7]} 31. Rxf5 {[%clk 0:01:29.1]} 31... gxf5 {[%clk
0:00:58.9]} 32. Qxh5 {[%clk 0:01:29.1]} 32... Bg7 {[%clk 0:00:37.6]} 33. Qxf5
{[%clk 0:01:14.4]} 33... Qc4 {[%clk 0:00:34.3]} 34. Bg5 {[%clk 0:01:06.8]} 34...
Ra8 {[%clk 0:00:26.2]} 35. Rc1 {[%clk 0:00:41.8]} 35... Qd5 {[%clk 0:00:20.5]}
36. Qg6 {[%clk 0:00:42.1]} 36... Rf8 {[%clk 0:00:20.4]} 37. Re1 {[%clk
0:00:37.3]} 37... Qxc5 {[%clk 0:00:19.8]} 38. Qxe4 {[%clk 0:00:36]} 38... Qf5
{[%clk 0:00:21.2]} 39. Qc4+ {[%clk 0:00:32.6]} 39... Qf7 {[%clk 0:00:21.4]} 40.
Qc5 {[%clk 0:00:28.8]} 40... Qg6 {[%clk 0:00:20.4]} 41. Qc4+ {[%clk 0:00:22.4]}
41... Kh7 {[%clk 0:00:20.9]} 42. Qh4+ {[%clk 0:00:17.9]} 42... Kg8 {[%clk
0:00:22.3]} 43. Qc4+ {[%clk 0:00:19]} 43... Kh7 {[%clk 0:00:22.4]} 44. Qh4+
{[%clk 0:00:19.3]} 44... Kg8 {[%clk 0:00:23.8]} 45. Qc4+ {[%clk 0:00:20.2]}
45... Qf7 {[%clk 0:00:25.4]} 46. Qc5 {[%clk 0:00:21]} 46... Qd5 {[%clk
0:00:24.9]} 47. Qxd5+ {[%clk 0:00:21.4]} 47... cxd5 {[%clk 0:00:26.2]} 48. Rd1
{[%clk 0:00:22.6]} 48... d4 {[%clk 0:00:24.6]} 49. Be7 {[%clk 0:00:23.6]} 49...
Rf7 {[%clk 0:00:25.1]} 50. Bc5 {[%clk 0:00:24.3]} 50... Rd7 {[%clk 0:00:26.7]}
51. g4 {[%clk 0:00:25.5]} 51... Kf7 {[%clk 0:00:27.7]} 52. h4 {[%clk 0:00:26.4]}
52... Ke6 {[%clk 0:00:29.3]} 53. Kg2 {[%clk 0:00:27.3]} 53... Kd5 {[%clk
0:00:30.8]} 54. Bb6 {[%clk 0:00:27]} 54... Rd6 {[%clk 0:00:30.4]} 55. Ba7 {[%clk
0:00:26.9]} 55... Ke4 {[%clk 0:00:30.5]} 56. g5 {[%clk 0:00:27.9]} 56... d3
{[%clk 0:00:31.5]} 57. Re1+ {[%clk 0:00:28.6]} 57... Kf4 {[%clk 0:00:31.8]} 58.
Rd1 {[%clk 0:00:26.9]} 58... Ke4 {[%clk 0:00:30.6]} 59. h5 {[%clk 0:00:27.5]}
59... Kf5 {[%clk 0:00:31.2]} 60. h6 {[%clk 0:00:28.1]} 60... Bc3 {[%clk
0:00:32.6]} 61. h7 {[%clk 0:00:26.8]} 61... Kxg5 {[%clk 0:00:32.7]} 62. Rh1
{[%clk 0:00:22.2]} 62... d2 {[%clk 0:00:31.2]} 63. Rd1 {[%clk 0:00:20.6]} 63...
Kg6 {[%clk 0:00:32.6]} 64. Be3 {[%clk 0:00:21.5]} 64... Kxh7 {[%clk 0:00:33.5]}
65. Kf2 {[%clk 0:00:22.9]} 65... Kg6 {[%clk 0:00:33.8]} 66. Ke2 {[%clk
0:00:24.2]} 66... Kf5 {[%clk 0:00:35.3]} 67. Bxd2 {[%clk 0:00:25.4]} 67... Bxd2
{[%clk 0:00:31.8]} 68. Rxd2 {[%clk 0:00:26.4]} 68... Ke5 {[%clk 0:00:33.3]} 69.
Rb2 {[%clk 0:00:26.5]} 69... b6 {[%clk 0:00:34]} 70. Ke3 {[%clk 0:00:27]} 70...
Ke6 {[%clk 0:00:28.1]} 71. Ke4 {[%clk 0:00:25.4]} 71... Kd7 {[%clk 0:00:29.6]}
72. Rb4 {[%clk 0:00:23]} 72... Kc6 {[%clk 0:00:29.8]} 73. Ke3 {[%clk 0:00:21.5]}
73... b5 {[%clk 0:00:30.5]} 74. Rb2 {[%clk 0:00:21.1]} 74... Kc5 {[%clk
0:00:30.5]} 75. Rc2+ {[%clk 0:00:20.8]} 75... Kb4 {[%clk 0:00:31]} 76. Rb2+
{[%clk 0:00:22.2]} 76... Kc4 {[%clk 0:00:32.4]} 77. Rc2+ {[%clk 0:00:22.2]}
77... Kb3 {[%clk 0:00:33.9]} 78. Rc5 {[%clk 0:00:23.4]} 78... b4 {[%clk
0:00:35.2]} 79. Rc8 {[%clk 0:00:24.5]} 79... Kb2 {[%clk 0:00:36]} 80. Rc5 {[%clk
0:00:24.9]} 80... b3 {[%clk 0:00:37.4]} 81. Ke2 {[%clk 0:00:23.5]} 81... Kb1
{[%clk 0:00:38]} 82. Rc3 {[%clk 0:00:23.9]} 82... b2 {[%clk 0:00:39.3]} 83. Rc8
{[%clk 0:00:25.1]} 83... Ra6 {[%clk 0:00:37.4]} 84. Rc3 {[%clk 0:00:25.4]} 84...
Ka1 {[%clk 0:00:38]} 85. Rb3 {[%clk 0:00:23.7]} 85... b1=Q {[%clk 0:00:39.2]}
86. Rxb1+ {[%clk 0:00:24.9]} 86... Kxb1 {[%clk 0:00:41.1]} 87. Ke3 {[%clk
0:00:26.3]} 87... Rd6 {[%clk 0:00:38.4]} 88. Kf4 {[%clk 0:00:27.3]} 88... Kc2
{[%clk 0:00:39.6]} 89. Ke5 {[%clk 0:00:28.4]} 89... Rd1 {[%clk 0:00:41.1]} 90.
Ke4 {[%clk 0:00:29.4]} 90... Kc3 {[%clk 0:00:43]} 91. Ke3 {[%clk 0:00:30.4]}
91... Rd4 {[%clk 0:00:44.5]} 92. Ke2 {[%clk 0:00:31.4]} 92... Kc4 {[%clk
0:00:45.6]} 93. Ke3 {[%clk 0:00:32.6]} 93... Kd5 {[%clk 0:00:47.1]} 94. Ke2
{[%clk 0:00:33.7]} 94... Ke4 {[%clk 0:00:47.4]} 95. Kf2 {[%clk 0:00:34.2]} 95...
Rd3 {[%clk 0:00:49.3]} 96. Ke2 {[%clk 0:00:24]} 96... Kd4 {[%clk 0:00:47.7]} 97.
Kf2 {[%clk 0:00:24.9]} 97... Re3 {[%clk 0:00:49.2]} 98. Kf1 {[%clk 0:00:25.6]}
98... Ke4 {[%clk 0:00:46.9]} 0-1

[Event "*** Titled Tuesday Blitz"]
[Site "Chess.com"]
[Date "2018.06.05"]
[Round "10"]
[White "chessking2151"]
[Black "olksuna"]
[Result "1/2-1/2"]
[WhiteElo "2445"]
[BlackElo "2427"]
[TimeControl "180+2"]
[EndTime "15:30:13 PDT"]
[Termination "Game drawn by agreement"]

1. d4 {[%clk 0:03:01.8]} 1... Nf6 {[%clk 0:03:00]} 2. c4 {[%clk 0:03:02.5]} 2...
e6 {[%clk 0:03:01.4]} 3. Nf3 {[%clk 0:03:02.7]} 3... d5 {[%clk 0:03:00.3]} 4.
Nc3 {[%clk 0:03:03.6]} 4... dxc4 {[%clk 0:03:00.8]} 5. e4 {[%clk 0:03:02.4]}
5... Bb4 {[%clk 0:03:01.1]} 6. Bg5 {[%clk 0:03:03.3]} 6... c5 {[%clk 0:03:00.5]}
7. dxc5 {[%clk 0:02:48.8]} 7... Qxd1+ {[%clk 0:02:42.6]} 8. Kxd1 {[%clk
0:02:40.4]} 8... Bxc3 {[%clk 0:02:39.6]} 9. bxc3 {[%clk 0:02:42.3]} 9... Nxe4
{[%clk 0:02:40.5]} 10. Be3 {[%clk 0:02:43.1]} 10... Nxc3+ {[%clk 0:02:32.1]} 11.
Kc2 {[%clk 0:02:44.5]} 11... Nd5 {[%clk 0:02:32.7]} 12. Bd4 {[%clk 0:02:45.4]}
12... O-O {[%clk 0:02:27]} 13. Bxc4 {[%clk 0:02:46.5]} 13... Nc6 {[%clk
0:02:27.8]} 14. Rhd1 {[%clk 0:02:43.4]} 14... Rd8 {[%clk 0:02:26.7]} 15. Bb2
{[%clk 0:02:40.7]} 15... Bd7 {[%clk 0:02:24.4]} 16. Bxd5 {[%clk 0:02:29.7]}
16... Nb4+ {[%clk 0:02:23.8]} 17. Kb3 {[%clk 0:02:27.8]} 17... Nxd5 {[%clk
0:02:25]} 18. Ne5 {[%clk 0:02:29.3]} 18... Be8 {[%clk 0:02:24.6]} 19. Rac1
{[%clk 0:02:27.7]} 19... Rac8 {[%clk 0:02:24.6]} 20. Ba3 {[%clk 0:02:15.6]}
20... b6 {[%clk 0:02:20.7]} 21. c6 {[%clk 0:02:02.7]} 21... f6 {[%clk
0:02:19.6]} 22. c7 {[%clk 0:01:57.7]} 22... fxe5 {[%clk 0:01:31.3]} 23. cxd8=Q
{[%clk 0:01:57]} 23... Rxd8 {[%clk 0:01:33.2]} 24. Rc7 {[%clk 0:01:29.5]} 24...
a5 {[%clk 0:01:31.4]} 25. Rcc1 {[%clk 0:01:09]} 25... b5 {[%clk 0:01:26.4]} 26.
Bc5 {[%clk 0:01:02.7]} 26... b4 {[%clk 0:01:22.3]} 27. Kb2 {[%clk 0:00:52.8]}
27... Kf7 {[%clk 0:00:57.4]} 28. Bb6 {[%clk 0:00:37.8]} 28... Ra8 {[%clk
0:00:50.4]} 29. Be3 {[%clk 0:00:38.5]} 29... e4 {[%clk 0:00:41.7]} 30. Rd4
{[%clk 0:00:35]} 30... Nc3 {[%clk 0:00:35.8]} 31. Bd2 {[%clk 0:00:24.2]} 31...
Nd5 {[%clk 0:00:19.5]} 32. Rxe4 {[%clk 0:00:22.8]} 32... Bb5 {[%clk 0:00:21.1]}
33. Rc5 {[%clk 0:00:19.9]} 33... Bd3 {[%clk 0:00:21.8]} 34. Rd4 {[%clk
0:00:21.4]} 34... Bg6 {[%clk 0:00:22.8]} 35. f4 {[%clk 0:00:22]} 35... h5 {[%clk
0:00:22.5]} 36. g3 {[%clk 0:00:22.8]} 36... Bf5 {[%clk 0:00:23]} 37. a3 {[%clk
0:00:22.5]} 37... bxa3+ {[%clk 0:00:21.1]} 38. Kxa3 {[%clk 0:00:24.4]} 38... Rb8
{[%clk 0:00:21]} 39. Rxa5 {[%clk 0:00:21.9]} 39... Rb1 {[%clk 0:00:21.6]} 40.
Raxd5 {[%clk 0:00:11.1]} 40... exd5 {[%clk 0:00:21.5]} 41. Rxd5 {[%clk 0:00:13]}
41... g6 {[%clk 0:00:22.5]} 42. Bc3 {[%clk 0:00:08]} 42... Rh1 {[%clk
0:00:22.4]} 43. Rd2 {[%clk 0:00:06.4]} 43... Be4 {[%clk 0:00:21.9]} 44. Kb4
{[%clk 0:00:07.5]} 44... Ke6 {[%clk 0:00:23.1]} 45. Re2 {[%clk 0:00:07.9]} 45...
Kf5 {[%clk 0:00:24.1]} 46. Bd4 {[%clk 0:00:08.2]} 46... Rd1 {[%clk 0:00:24.8]}
47. Kc5 {[%clk 0:00:08.6]} 47... Rc1+ {[%clk 0:00:25.4]} 48. Kb4 {[%clk
0:00:09.6]} 48... Rb1+ {[%clk 0:00:24.2]} 49. Kc5 {[%clk 0:00:10.5]} 49... Rc1+
{[%clk 0:00:25.3]} 50. Kb4 {[%clk 0:00:10.5]} 50... Rc8 {[%clk 0:00:21.4]} 51.
Be5 {[%clk 0:00:09.9]} 51... Rc1 {[%clk 0:00:17.9]} 52. Rd2 {[%clk 0:00:10.7]}
52... Kg4 {[%clk 0:00:17.9]} 53. Rd4 {[%clk 0:00:07.8]} 53... Kf3 {[%clk
0:00:18.6]} 54. Rd2 {[%clk 0:00:09]} 54... Rb1+ {[%clk 0:00:18.1]} 55. Kc5
{[%clk 0:00:09.9]} 55... Rc1+ {[%clk 0:00:19]} 56. Kd6 {[%clk 0:00:11]} 56...
Rc6+ {[%clk 0:00:18.8]} 57. Ke7 {[%clk 0:00:11.6]} 57... Bf5 {[%clk 0:00:19.3]}
58. Kf7 {[%clk 0:00:12]} 58... Kg4 {[%clk 0:00:19.1]} 59. Rb2 {[%clk 0:00:11.5]}
59... Kh3 {[%clk 0:00:20]} 60. Kg7 {[%clk 0:00:12.1]} 60... Rc1 {[%clk
0:00:20.5]} 61. Kh6 {[%clk 0:00:12.9]} 61... Rh1 {[%clk 0:00:15.2]} 62. Kg5
{[%clk 0:00:13.9]} 62... h4 {[%clk 0:00:10.8]} 63. Rb3 {[%clk 0:00:08.7]} 63...
hxg3 {[%clk 0:00:10.4]} 64. Rxg3+ {[%clk 0:00:08.9]} 64... Kxh2 {[%clk
0:00:11.2]} 65. Rb3 {[%clk 0:00:10.1]} 65... Rg1+ {[%clk 0:00:11.7]} 66. Kf6
{[%clk 0:00:11.3]} 66... Rg3 {[%clk 0:00:08.9]} 67. Rb2+ {[%clk 0:00:11.8]}
67... Rg2 {[%clk 0:00:09.8]} 68. Rb6 {[%clk 0:00:12.6]} 68... Kg3 {[%clk
0:00:10.3]} 69. Rb3+ {[%clk 0:00:13.1]} 69... Kg4 {[%clk 0:00:10.6]} 70. Rb4
{[%clk 0:00:14.6]} 70... Rc2 {[%clk 0:00:10.7]} 71. Rb6 {[%clk 0:00:15.1]} 71...
Kf3 {[%clk 0:00:10.6]} 72. Rb3+ {[%clk 0:00:15.7]} 72... Ke4 {[%clk 0:00:11.4]}
73. Rb4+ {[%clk 0:00:16.8]} 73... Kf3 {[%clk 0:00:12.5]} 74. Rd4 {[%clk
0:00:17.6]} 74... Re2 {[%clk 0:00:13]} 75. Kg5 {[%clk 0:00:18.1]} 75... Re4
{[%clk 0:00:13.7]} 76. Rd3+ {[%clk 0:00:17.9]} 76... Ke2 {[%clk 0:00:15]} 77.
Rg3 {[%clk 0:00:17.8]} 77... Re3 {[%clk 0:00:16.3]} 78. Rg2+ {[%clk 0:00:18.4]}
78... Kf3 {[%clk 0:00:17.5]} 79. Rg1 {[%clk 0:00:18.3]} 79... Re2 {[%clk
0:00:18.4]} 80. Rf1+ {[%clk 0:00:18]} 80... Kg2 {[%clk 0:00:19.2]} 81. Rc1
{[%clk 0:00:18.8]} 81... Kf3 {[%clk 0:00:20.5]} 82. Rc3+ {[%clk 0:00:19.5]}
82... Ke4 {[%clk 0:00:21.7]} 83. Kf6 {[%clk 0:00:19.3]} 83... Kd5 {[%clk
0:00:22.8]} 84. Rg3 {[%clk 0:00:19.2]} 84... Ke4 {[%clk 0:00:23.6]} 85. Rg1
{[%clk 0:00:17.4]} 85... Kd5 {[%clk 0:00:23.4]} 86. Rd1+ {[%clk 0:00:18.3]}
86... Ke4 {[%clk 0:00:24.7]} 87. Rd4+ {[%clk 0:00:19.4]} 87... Kf3 {[%clk
0:00:25.9]} 88. Rb4 {[%clk 0:00:20.6]} 88... Rc2 {[%clk 0:00:26.5]} 89. Kg5
{[%clk 0:00:19.7]} 89... Rg2+ {[%clk 0:00:25.7]} 90. Kf6 {[%clk 0:00:20.8]}
90... Rc2 {[%clk 0:00:26.5]} 91. Rb3+ {[%clk 0:00:21]} 91... Kg4 {[%clk
0:00:27]} 92. Rb4 {[%clk 0:00:21.6]} 92... Rc6+ {[%clk 0:00:27.3]} 93. Kf7
{[%clk 0:00:19.3]} 93... Ra6 {[%clk 0:00:27.7]} 94. Rb2 {[%clk 0:00:16.2]} 94...
Kf3 {[%clk 0:00:22.4]} 95. Kg7 {[%clk 0:00:15.1]} 95... Kg4 {[%clk 0:00:23.1]}
96. Rg2+ {[%clk 0:00:14.8]} 96... Kf3 {[%clk 0:00:23.8]} 97. Rg5 {[%clk
0:00:15]} 97... Ra7+ {[%clk 0:00:23.3]} 98. Kf6 {[%clk 0:00:14.2]} 98... Ke4
{[%clk 0:00:22.8]} 99. Rg1 {[%clk 0:00:14.3]} 99... Ra6+ {[%clk 0:00:22.5]} 100.
Kg5 {[%clk 0:00:14.9]} 100... Kd5 {[%clk 0:00:22.1]} 101. Re1 {[%clk 0:00:14.2]}
101... Ra2 {[%clk 0:00:21.8]} 102. Rd1+ {[%clk 0:00:12.9]} 102... Ke6 {[%clk
0:00:21.5]} 103. Rd6+ {[%clk 0:00:13.9]} 103... Kf7 {[%clk 0:00:22.7]} 104. Rf6+
{[%clk 0:00:14.8]} 104... Ke7 {[%clk 0:00:23.9]} 105. Kh6 {[%clk 0:00:14.8]}
105... Rh2+ {[%clk 0:00:19.2]} 106. Kg7 {[%clk 0:00:15.8]} 106... Rd2 {[%clk
0:00:19]} 107. Rb6 {[%clk 0:00:14.9]} 107... Kd7 {[%clk 0:00:20]} 108. Kf6
{[%clk 0:00:14]} 108... Rd3 {[%clk 0:00:20.7]} 109. Ra6 {[%clk 0:00:13.8]}
109... Rb3 {[%clk 0:00:20.8]} 110. Rd6+ {[%clk 0:00:14.3]} 110... Kc8 {[%clk
0:00:21.9]} 111. Ke7 {[%clk 0:00:15.2]} 111... Rb7+ {[%clk 0:00:21.5]} 112. Kf6
{[%clk 0:00:16.5]} 112... Rd7 {[%clk 0:00:22.3]} 113. Rc6+ {[%clk 0:00:17.9]}
113... Kb7 {[%clk 0:00:23.5]} 114. Rc5 {[%clk 0:00:19]} 1/2-1/2